Workbook

Sheet 1. Forside
A1: Varde Kloak og Spildevand A/S
D8: Bilag A
D13: Indholdsfortegnelse
C16: Fane nr. 2 | D16: Samlet prisloft
C17: Fane nr. 3 | D17: Driftsomkostninger
C18: Fane nr. 4 | D18: Historiske investeringer
C19: Fane nr. 5 | D19: Gennemførte investeringer
C20: Fane nr. 6 | D20: Korrektion investeringer
C21: Fane nr. 7 | D21: Planlagte investeringer
C22: Fane nr. 8 | D22: 1:1 omkostninger
C23: Fane nr. 9 | D23: Miljø- og servicemål
C24: Fane nr. 10 | D24: Klimatilpasning
C25: Fane nr. 11 | D25: Nettofinansielle poster
C26: Fane nr. 12 | D26: Over- eller underdækning
C27: Fane nr. 13 | D27: Kontrol med indtægtsrammen og oversigt over ekstraordinære effektiviseringsgevinster

Sheet 2. Samlet prisloft
A1: ='1. Forside'!A1 -> Varde Kloak og Spildevand A/S
B4: Fane 2. Samlet prisloft for 2015
B6: Driftsomkostninger
B7: Driftsomkostninger i prisloftet for 2014 | C7: ='3. Driftsomkostninger'!C19 -> 31987103.72 | D7: kr.
B8: Bortfald af væsentlige omkostninger | C8: =-'3. Driftsomkostninger'!C24 -> 0 | D8: kr.
B9: Korrektion for prisudviklingen 2014-2015 | C9: ='3. Driftsomkostninger'!C30 -> 25589.68297 | D9: kr.
B10: Forhøjelse til effektivt niveau iht. benchmarkingen | C10: ='3. Driftsomkostninger'!C36 -> 0 | D10: kr.
B11: Korrektion for generelt effektiviseringskrav | C11: =-'3. Driftsomkostninger'!C42 -> -140743.2564 | D11: kr.
B12: Korrektion for individuelt effektiviseringskrav | C12: =-'3. Driftsomkostninger'!C51 -> -1599355.186 | D12: kr.
B13: Driftsomkostninger i alt | C13: =SUM(C7:C12) -> 30272594.96 | D13: kr. | E13: =C13 -> 30272594.96 | F13: kr.
B14: Investeringer
B15: Tillæg for historiske investeringer | C15: ='4. Historiske investeringer'!C9 -> 44070635.13 | D15: kr.
B16: Tillæg for gennemførte investeringer i 2011-2013 | C16: ='5. Gennemførte investeringer'!F44 -> 4577177.843 | D16: kr.
B17: Korrektion af tillæg for planlagte investeringer vedrørende 2013 | C17: ='6. Korrektion investeringer'!C10 -> 677082.9867 | D17: kr.
B18: Tillæg for planlagte investeringer i 2014 og 2015 | C18: ='7. Planlagte investeringer'!F15 -> 1477500 | D18: kr.
B19: Investeringstillæg i alt | C19: =SUM(C15:C18) -> 50802395.96 | D19: kr. | E19: =C19 -> 50802395.96 | F19: kr.
B20: Øvrige omkostninger mv.
B21: Tillæg for 1:1 omkostninger i 2015 | C21: ='8. 1-1 omkostninger'!C13 -> 2852000 | D21: kr.
B22: Tillæg vedr. revisorerklæringer og DANVA/FVD-kontingent | C22: ='8. 1-1 omkostninger'!C21 -> 135000 | D22: kr.
B23: Korrektion ift. faktiske 1:1 omkostninger i 2013 | C23: ='8. 1-1 omkostninger'!C27 -> 8627652 | D23: kr.
B24: Tillæg for driftsomkostninger til miljø- og servicemål i 2015 | C24: ='9. Miljø- og servicemål'!C9 -> 250000 | D24: kr.
B25: Korrektion ift. faktiske driftsomkostninger til miljø- og servicemål i 2013 | C25: ='9. Miljø- og servicemål'!C16 -> 0 | D25: kr.
B26: Tillæg for driftsomkostninger til medfinansiering af klimatilpasningsprojekter i 2015 | C26: ='10. Klimatilpasning'!C9 -> 0 | D26: kr.
B27: Korrektion ift. faktiske omkostninger til medfinansiering af klimatilpasningsprojekter i 2013 | C27: ='10. Klimatilpasning'!C16 -> 0 | D27: kr.
B28: Tillæg/fradrag for nettofinansielle poster i 2015 | C28: ='11. Nettofinansielle poster'!C9 -> 235095 | D28: kr.
B29: Korrektion ift. faktiske nettofinansielle poster i 2013 | C29: ='11. Nettofinansielle poster'!C16 -> 452441 | D29: kr.
B30: Øvrige omkostninger mv. i alt | C30: =SUM(C21:C29) -> 12552188 | D30: kr. | E30: =C30 -> 12552188 | F30: kr.
B31: Historisk over- eller underdækning
B32: Tillæg/fradrag for over- eller underdækning til og med 2010 | C32: ='12. Over- eller underdækning'!C11 -> -8077487.751 | D32: kr. | E32: =C32 -> -8077487.751 | F32: kr.
B33: Korrektion i forhold til tidligere indtægtsramme
B34: Korrektion for overholdelse af indtægtsramme i prisloft 2013 | C34: ='13. Kontrol med indtægtsrammen'!E27 -> 14312636.44 | D34: kr. | E34: =C34 -> 14312636.44 | F34: kr.
B35: Samlet prisloft
B36: Indtægtsramme i 2015 | E36: =SUM(E13:E34) -> 99862327.61 | F36: kr.
B37: Debiteret vandmængde i 2013 | E37: 2219474 | F37: m3
B38: Prisloft 2015 | E38: =E36/E37 -> 44.99369112 | F38: kr./m3

Sheet 3. Driftsomkostninger
A1: ='1. Forside'!A1 -> Varde Kloak og Spildevand A/S
B4: Fane 3. Driftsomkostninger
B6: Driftsomkostningerne i prisloftet for 2014
B7: Korrigerede driftsomkostninger i prisloftet for 2013 (DOiPL 2013) | C7: 31510001.75 | D7: kr.
B8: Tillæg i henhold til § 8, stk. 2, pkt. 1 | C8: 1515300 | D8: kr.
B9: Prisfremskrivning 1,5 pct. | C9: =0.015*SUM(C7:C8) -> 495379.5263 | D9: kr.
B10: Generelt effektiviseringskrav (0 pct.) | C10: 0 | D10: kr.
B11: Individuelt effektiviseringskrav | C11: -1452642 | D11: kr.
B12: Driftsomkostningerne i prisloftet for 2014 (DOiPL 2014) | C12: =SUM(C7:C11) -> 32068039.28 | D12: kr.
B15: Forskel i § 8, stk. 2, pkt. 1 - tillæg
B16: Godkendt tillæg i PL2014 prisfremskrevet til 2014-niveau | C16: 1538029.336 | D16: kr.
B17: Godkendt tillæg i PL2015 prisfremskrevet til 2014-niveau | C17: 1457093.777 | D17: kr.
B18: Forskel | C18: =C17-C16 -> -80935.55894 | D18: kr.
B19: Korrigerede driftsomkostninger i prisloftet for 2014 | C19: =C12+C18 -> 31987103.72 | D19: kr.
B22: Korrektion for forventet bortfald af væsentlige omkostninger
B23: Selskabets indberettede bortfald af væsentlige omkostninger inden 2015 | C23: 0 | D23: kr.
B24: Korrektion for forventet bortfald | C24: =SUM(C23:C23) -> 0 | D24: kr.
B27: Korrektion for prisudviklingen fra 2014-2015
B28: Driftsomkostningerne i prisloftet for 2014 | C28: =C19-C24 -> 31987103.72 | D28: kr.
B29: Prisudvikling 2014 - 2015 | C29: 0.08 | D29: pct.
B30: Korrektion for prisudvikling | C30: =C28*(C29/100) -> 25589.68297 | D30: kr.
B33: Eventuel forhøjelse til effektivt niveau iht. benchmarkingen
B34: Selskabets effektive driftsomkostninger iht. benchmarkingen | C34: 20075106 | D34: kr.
B35: Selskabets pristalskorrigerede driftsomkostninger i 2015-niveau | C35: =C28+C30 -> 32012693.4 | D35: kr.
B36: Eventuel forhøjelse til effektivt niveau | C36: =IF(C35>C34,0,C34-C35) -> 0 | D36: kr.
B39: Korrektion for generelt effektiviseringskrav
B40: Driftsomkostningerne i prisloftet for 2014 | C40: =C28 -> 31987103.72 | D40: kr.
B41: Generelt effektiviseringskrav | C41: 0.44 | D41: pct.
B42: Endeligt generelt effektiviseringskrav | C42: =C40*(C41/100) -> 140743.2564 | D42: kr.
B45: Korrektion for individuelt effektiviseringskrav
B46: Rå effektiviseringspotentiale | C46: 11911997 | D46: kr.
B47: Effektiviseringspotentiale efter eventuel korrektion for særlige forhold | C47: 11911997 | D47: kr.
B48: Effektiviseringspotentiale efter forsigtighedshensyn | C48: 7680103 | D48: kr.
B49: Effektiviseringspotentiale efter eventuel korrektion for sammensætning af signifikante costdrivere | C49: 7680103 | D49: kr.
B50: Umiddelbart effektiviseringskrav | C50: =C49/4 -> 1920025.75 | D50: kr.
B51: Endeligt individuelt effektiviseringskrav | C51: =IF(C50>0.05*C28,0.05*C28,IF(C50<0.01*C28,0,C50)) -> 1599355.186 | D51: kr.

Sheet 4. Historiske investeringer
A1: ='3. Driftsomkostninger'!A1 -> Varde Kloak og Spildevand A/S
B4: Fane 4. Historiske investeringer
B6: Tillæg for historiske investeringer
B7: Værdi af selskabets materielle anlægsaktiver pr. 1. januar 2010 | C7: 1936542634 | D7: kr.
B8: Den årlige standardafskrivning på de materielle anlægsaktiver iht. POLKA | C8: 44070635.13 | D8: kr.
B9: Tillæg i alt i 2015 | C9: =C8 -> 44070635.13 | D9: kr.

Sheet 5. Gennemførte investeringer
A1: ='4. Historiske investeringer'!A1 -> Varde Kloak og Spildevand A/S
B4: Fane 5. Gennemførte investeringer i 2010 - 2013
B6: Tillæg for gennemførte investeringer i 2013
B7: Beskrivelse af investeringen | C7: Årstal | D7: Std. levetid (år) | E7: Anskaffelses-pris (kr.) | F7: Afskrivning
B8: Arbejdsplads | C8: 2013 | D8: 5 | E8: 8737 | F8: =E8/D8 -> 1747.4 | G8: kr.
B9: Beluftningstanke, Mek/EL | C9: 2013 | D9: 20 | E9: 188272 | F9: =E9/D9 -> 9413.6 | G9: kr.
B10: Beluftningstanke, SRO | C10: 2013 | D10: 10 | E10: 754327 | F10: 75432.7 | G10: kr.
B11: Brønde | C11: 2013 | D11: 75 | E11: 13521561 | F11: 180287.48 | G11: kr.
B12: Efterklaringstanke, Mek/El | C12: 2013 | D12: 20 | E12: 19398 | F12: 969.9 | G12: kr.
B13: Forsinkelsesbassiner, lukkede med automatisk rensning og SRO Miljøklasse A (1.000-3.000 m3) - Konstruktioner | C13: 2013 | D13: 75 | E13: 8363998 | F13: 111519.9733 | G13: kr.
B14: Forsinkelsesbassiner, lukkede uden automatisk rensning og SRO Miljøklasse B (mindre end 1.000 m3) | C14: 2013 | D14: 50 | E14: 1130804 | F14: 22616.08 | G14: kr.
B15: Indløb med riste, Mek/EL | C15: 2013 | D15: 20 | E15: 565245 | F15: 28262.25 | G15: kr.
B16: Indløb med riste, SRO | C16: 2013 | D16: 10 | E16: 33726 | F16: 3372.6 | G16: kr.
B17: Indløb-/udløbsarrangement | C17: 2013 | D17: 75 | E17: 93569 | F17: 1247.586667 | G17: kr.
B18: Kælder | C18: 2013 | D18: 75 | E18: 591978 | F18: 7893.04 | G18: kr.
B19: Ledningsnet = Ø 200 mm | C19: 2013 | D19: 75 | E19: 7617854 | F19: 101571.3867 | G19: kr.
B20: Pumpeinstallation Miljøklasse A (100-300 l/s) - Mek/EL | C20: 2013 | D20: 20 | E20: 45000 | F20: 2250 | G20: kr.
B21: Pumpestationer i brønde (< 6,25 m2), Konstruktioner | C21: 2013 | D21: 50 | E21: 2795773 | F21: 55915.46 | G21: kr.
B22: Pumpestationer i brønde (< 6,25 m2), Mek/EL | C22: 2013 | D22: 20 | E22: 2311847 | F22: 115592.35 | G22: kr.
B23: Pumpestationer i brønde (< 6,25 m2), SRO | C23: 2013 | D23: 10 | E23: 461163 | F23: 46116.3 | G23: kr.
B24: Pumpestationer i underjordiske bygværker ( | C24: 2013 | D24: 20 | E24: 200000 | F24: 10000 | G24: kr.
B25: Pumpestationer m. overbygning (< 20 m2), Konstruktioner | C25: 2013 | D25: 50 | E25: 711256 | F25: 14225.12 | G25: kr.
B26: Pumpestationer m. overbygning (< 20 m2), Mek/EL | C26: 2013 | D26: 20 | E26: 90977 | F26: 4548.85 | G26: kr.
B27: Pumpestationer m. overbygning (< 20 m2), SRO | C27: 2013 | D27: 10 | E27: 22744 | F27: 2274.4 | G27: kr.
B28: Sand- og fedtfang, Mek/EL | C28: 2013 | D28: 20 | E28: 29865 | F28: 1493.25 | G28: kr.
B29: Slutdisponering, slam - højteknologisk (slamtørring), SRO | C29: 2013 | D29: 10 | E29: 37230 | F29: 3723 | G29: kr.
B30: Stik | C30: 2013 | D30: 75 | E30: 116412 | F30: 1552.16 | G30: kr.
B31: Strømpeforing = Ø 200 mm | C31: 2013 | D31: 50 | E31: 343793 | F31: 6875.86 | G31: kr.
B32: Strømpeforing Ø 200 mm < Ledningsnet = Ø 500 mm | C32: 2013 | D32: 50 | E32: 113101 | F32: 2262.02 | G32: kr.
B33: Tryksatte minipumpestationer (husstandssystemer) | C33: 2013 | D33: 30 | E33: 474270 | F33: 15809 | G33: kr.
B34: Installationer "mekaniske riste og SRO" Miljøklasse A. (7-20 m2) - Mek/EL | C34: 2013 | D34: 20 | E34: 64350 | F34: 3217.5 | G34: kr.
B35: Installationer "mekaniske riste og SRO" Miljøklasse A. (7-20 m2) - SRO | C35: 2013 | D35: 10 | E35: 28581 | F35: 2858.1 | G35: kr.
B36: Pumpeinstallation Miljøklasse A (100-300 l/s) - SRO | C36: 2013 | D36: 10 | E36: 510829 | F36: 51082.9 | G36: kr.
B37: Efterklaringstanke, SRO | C37: 2013 | D37: 10 | E37: 316228 | F37: 31622.8 | G37: kr.
B38: Ø 200 mm < Ledningsnet = Ø 500 mm | C38: 2013 | D38: 75 | E38: 2941047 | F38: 39213.96 | G38: kr.
B39: Ø 500 mm < Ledningsnet = Ø 800 mm | C39: 2013 | D39: 75 | E39: 5907546 | F39: 78767.28 | G39: kr.
B40: Ø 800 mm < Ledningsnet = Ø 1000 mm | C40: 2013 | D40: 75 | E40: 621965 | F40: 8292.866667 | G40: kr.
B41: Andre bygninger (tekniske installationer, målere mv.) | C41: 2013 | D41: 75 | E41: 413574 | F41: 5514.32 | G41: kr.
B42: Tillæg for 2013 | F42: =SUM(F8:F41) -> 1047541.493 | G42: kr.
B43: Tillæg for 2010 - 2012 | F43: 3529636.35 | G43: kr.
B44: Samlet tillæg for gennemførte investeringer | F44: =F42+F43 -> 4577177.843 | G44: kr.

Sheet 6. Korrektion investeringer
A1: ='5. Gennemførte investeringer'!A1 -> Varde Kloak og Spildevand A/S
B4: Fane 6. Korrektion af tillæg for planlagte investeringer
B6: Korrektion af tillæg for planlagte investeringer vedr. 2013
B7: Tillæg for planlagte investeringer i 2013 i prisloft 2013 | C7: 640000 | D7: kr.
B8: Tillæg for planlagte investeringer i 2013 i prisloft 2014 | C8: 778000 | D8: kr.
B9: Selskabets faktiske afskrivninger på gennemførte investeringer i 2013 | C9: ='5. Gennemførte investeringer'!F42 -> 1047541.493 | D9: kr.
B10: Korrektion af tillæg for planlagte investeringer vedr. 2013 | C10: =C9-C7+C9-C8 -> 677082.9867 | D10: kr.

Sheet 7. Planlagte investeringer
A1: ='6. Korrektion investeringer'!A1 -> Varde Kloak og Spildevand A/S
B4: Fane 7. Planlagte investeringer
B6: Tillæg for planlagte investeringer i 2014 og 2015
B7: Beskrivelse af investeringen | C7: Årstal | D7: Std. levetid (år) | E7: Anskaffelses-pris (kr.) | F7: Afskrivning
B8: Ledningsnet = Ø 200 mm | C8: 2014 | D8: 75 | E8: 41000000 | F8: =E8/D8 -> 546666.6667 | G8: kr.
B9: Indløb med riste, Konstruktioner | C9: 2014 | D9: 60 | E9: 5250000 | F9: =E9/D9 -> 87500 | G9: kr.
B10: Jordbassin Klasse B | C10: 2014 | D10: 50 | E10: 6100000 | F10: =E10/D10 -> 122000 | G10: kr.
B11: Indløb med riste, SRO | C11: 2014 | D11: 10 | E11: 1000000 | F11: 100000 | G11: kr.
B12: Ledningsnet = Ø 200 mm | C12: 2015 | D12: 75 | E12: 46600000 | F12: 621333.3333 | G12: kr.
B13: Tillæg for 2014 | F13: =SUMIF(C8:C12,"2014",F8:F12) -> 856166.6667 | G13: kr.
B14: Tillæg for 2015 | F14: =SUMIF(C8:C12,"2015",F8:F12) -> 621333.3333 | G14: kr.
B15: Tillæg i alt | F15: =F13+F14 -> 1477500 | G15: kr.

Sheet 8. 1-1 omkostninger
A1: ='7. Planlagte investeringer'!A1 -> Varde Kloak og Spildevand A/S
B4: Fane 8. 1:1 omkostninger
B6: Tillæg for budgetterede 1:1 omkostninger i 2015
B7: Betaling til Forsyningssekretariatet | C7: 33000 | D7: kr.
B8: Spildevandsafgift | C8: 1259000 | D8: kr.
B9: Køb af varer og tjenesteydelser hos et andet prisloftreguleret vandselskab | C9: 500000 | D9: kr.
B10: Selskabsskat | C10: 1000000 | D10: kr.
B11: Tjenestemandspensioner | C11: 20000 | D11: kr.
B12: Ejendomsskatter | C12: 40000 | D12: kr.
B13: Tillæg i alt | C13: =SUM(C7:C12) -> 2852000 | D13: kr.
B18: Tillæg for budgetterede nødvendige udgifter til revisorerklæringer samt ordinært medlemskab af DANVA og FVD i 2015
B19: Betaling for ordinært medlemskab af DANVA/FVD | C19: 110000 | D19: kr.
B20: Betaling for revisorerklæringer | C20: 25000 | D20: kr.
B21: Tillæg i alt | C21: =SUM(C19:C20) -> 135000 | D21: kr.
B24: Korrektion af tillæg for faktiske 1:1 omkostninger (inkl. revisorerklæringer og ordinært medlemskab af DANVA/FVD) i 2013
B25: Selskabets faktiske 1:1 omkostninger mv. i 2013, jf. reguleringsregnskabet | C25: 11333583 | D25: kr.
B26: Tillæg for budgetterede 1:1 omkostninger mv. i prisloft 2013 | C26: 2705931 | D26: kr.
B27: Korrektion af tillæg for budgetterede 1:1 omkostninger mv. i 2013 | C27: =C25-C26 -> 8627652 | D27: kr.

Sheet 9. Miljø- og servicemål
A1: ='8. 1-1 omkostninger'!A1 -> Varde Kloak og Spildevand A/S
B4: Fane 9. Driftsomkostninger til miljø- og servicemål
B6: Tillæg for budgetterede driftsomkostninger til miljø- og servicemål i 2015
B7: Rottebekæmpelse | C7: 250000 | D7: kr.
B8: Vedligeholdelse af bassiner | C8: 0 | D8: kr.
B9: Tillæg i alt | C9: =SUM(C7:C8) -> 250000 | D9: kr.
B13: Korrektion af tillæg for faktiske driftsomkostninger til miljø- og servicemål i 2013
B14: Selskabets faktiske driftsomkostninger til miljø- og servicemål i 2013, jf. reguleringsregnskabet | C14: 0 | D14: kr.
B15: Tillæg for budgetterede driftsomkostninger til miljø- og servicemål i prisloft 2013 | C15: 0 | D15: kr.
B16: Korrektion af tillæg for budgetterede driftsomkostninger til miljø- og servicemål i 2013 | C16: =C14-C15 -> 0 | D16: kr.

Sheet 10. Klimatilpasning
A1: ='9. Miljø- og servicemål'!A1 -> Varde Kloak og Spildevand A/S
B4: Fane 10. Medfinansiering af klimatilpasningsprojekter
B7: Tillæg for budgetterede omkostninger til medfinansiering af klimatilpasningsprojekter i 2015
C8: 0 | D8: kr.
B9: Tillæg i alt | C9: =SUM(C8:C8) -> 0 | D9: kr.
B13: Korrektion af tillæg for faktiske omkostninger til medfinansiering af klimatilpasningsprojekter i 2013
B14: Selskabets faktiske driftsomkostninger til klimatilpasningsprojekter i 2013, jf. reguleringsregnskabet | C14: 0 | D14: kr.
B15: Tillæg for budgetterede driftsomkostninger til klimatilpasningsprojekter i prisloft 2013 | C15: 0 | D15: kr.
B16: Korrektion af tillæg for budgetterede omkostninger til klimatilpasningsprojekter i 2013 | C16: =C14-C15 -> 0 | D16: kr.

Sheet 11. Nettofinansielle poster
A1: ='10. Klimatilpasning'!A1 -> Varde Kloak og Spildevand A/S
B4: Fane 11. Nettofinansielle poster
B6: Tillæg for budgetterede nettofinansielle poster i 2015
B7: Budgetterede renteudgifter og gebyrer i 2015 | C7: 286292 | D7: kr.
B8: Budgetterede renteindtægter i 2015 | C8: 51197 | D8: kr.
B9: Tillæg/fradrag i alt | C9: =C7-C8 -> 235095 | D9: kr.
B13: Korrektion af tillæg for faktiske nettofinansielle poster i 2013
B14: Selskabets faktiske nettofinansielle poster i 2013, jf. reguleringsregnskabet | C14: -347559 | D14: kr.
B15: Tillæg for budgetterede nettofinansielle poster i prisloft 2013 | C15: -800000 | D15: kr.
B16: Korrektion af tillæg for budgetterede nettofinansielle poster i 2013 | C16: =C14-C15 -> 452441 | D16: kr.

Sheet 12. Over- eller underdækning
A1: ='11. Nettofinansielle poster'!A1 -> Varde Kloak og Spildevand A/S
B4: Fane 12. Over- eller underdækning til og med 2010
B6: Tillæg/fradrag for over- eller underdækning til og med 2010
B7: Opgjort over- eller underdækning per 31. december 2010 | C7: -79708462 | D7: kr.
B8: Heraf beløb indregnet i prislofterne for 2011 - 2014 | C8: -31243535.49 | D8: kr.
B9: Endnu ikke indregnet over- eller underdækning | C9: =C7-C8 -> -48464926.51 | D9: kr.
B10: Resterende indregningsperiode (fastsat i prisloftet for 2012) | C10: 6 | D10: år
B11: Tillæg/fradrag i alt | C11: =IF(C7=0,0,C9/C10) -> -8077487.751 | D11: kr.

Sheet 13. Kontrol med indtægtsrammen
A1: ='12. Over- eller underdækning'!A1 -> Varde Kloak og Spildevand A/S
B4: Fane 13. Korrektion for overholdelse af indtægtsrammen i prisloftet for 2013
B6: Samlet opgørelse vedrørende overholdelse af indtægtsrammen i prisloftet for 2013
B7: Indtægtsramme i prisloftet for 2013 | E7: 86916391.35 | F7: kr.
B8: Ikke anvendt likviditet vedrørende investeringer i 2013
B9: Tillæg for historiske investeringer | C9: 44226513.91 | D9: kr.
B10: Tillæg for gennemførte investeringer i 2011 | C10: 2378155 | D10: kr.
B11: Korrektion af tillæg for planlagte investeringer i 2011 | C11: 2434649 | D11: kr.
B12: Tillæg for planlagte investeringer i 2012 og 2013 | C12: 1272000 | D12: kr.
B13: Indtægter fra tilslutningsbidrag | C13: 2347300 | D13: kr.
B14: Indtægter fra salg af anlægsaktiver | C14: 0 | D14: kr.
B15: Erstatninger vedr. anlægsaktiver mv. | C15: 0 | D15: kr.
B16: Ekstraordinær effektiviseringsgevinst anvendt til investeringer | C16: 0 | D16: kr.
B17: Udgifter til investeringer | C17: -47426696 | D17: kr.
B18: Ikke anvendt likviditet vedr. investeringer i alt | C18: =SUM(C9:C17) -> 5231921.911 | D18: kr. | E18: =IF(C18<0,0,-C18) -> -5231921.911 | F18: kr.
B19: Ekstraordinære effektiviseringsgevinster anvendt til takstnedsættelse
B20: Ekstraordinær effektiviseringsgevinst anvendt til takstnedsættelse | C20: 3616429 | D20: kr. | E20: =-C20 -> -3616429 | F20: kr.
B21: Korrektion af ikke opkrævet tillæg fra 2011 i prisloft 2013
B22: Korrektion af ikke opkrævet tillæg fra 2011 i prisloft 2013 | C22: 0 | D22: kr. | E22: =-C22 -> 0 | F22: kr.
B23: Indtægter fra primære aktiviteter mv.
B24: Indtægter fra kubikmetertakster, faste takster, særbidrag, målergebyrer samt andre takster og gebyrer | C24: 63755404 | D24: kr.
B25: Andre indtægter i prisloftåret, som selskabet har opnået i forbindelse med eller som følge af selskabets primære aktiviteter | C25: 0 | D25: kr.
B26: Indtægter fra primære aktiviteter mv. i alt | C26: =SUM(C24:C25) -> 63755404 | D26: kr. | E26: =-C26 -> -63755404 | F26: kr.
B27: Tillæg/fradrag i prisloftet for 2015 i alt | E27: =E7+E18+E20+E22+E26 -> 14312636.44 | F27: kr.
B31: Oversigt over ekstraordinære effektiviseringsgevinster
C33: 2012 | E33: 2013 | G33: 2014 | I33: 2015 | K33: 2016
B34: Indhentet ekstraordinær effektiviseringsgevinst | C34: 2982758 | D34: kr. | E34: 633670.6293 | F34: kr. | H34: kr. | J34: kr. | L34: kr.
B35: Gevinst anvendt til investeringer | C35: 0 | D35: kr. | E35: 0 | F35: kr. | H35: kr. | J35: kr. | L35: kr.
B36: Gevinst anvendt til takstnedsættelse | C36: 0 | D36: kr. | E36: 3616429 | F36: kr. | H36: kr. | J36: kr. | L36: kr.
B37: Korrektion for effektiviseringsgevinst der ikke er anvendt inden 4 år | C37: 0 | D37: kr. | E37: 0 | F37: kr. | H37: kr. | J37: kr. | K37: =IF(C38>SUM(C35:I36),C38-SUM(E35:I36),0)*-1 -> 0 | L37: kr.
B38: Resterende gevinst | C38: =C34-C35-C36 -> 2982758 | D38: kr. | E38: =C38+E34-E35-E36 -> -0.3707432821 | F38: kr. | G38: =E38+G34-G35-G36 -> -0.3707432821 | H38: kr. | I38: =G38+I34-I35-I36 -> -0.3707432821 | J38: kr. | K38: =K34-K35-K36+K37+I38 -> -0.3707432821 | L38: kr.
